[Event "*** Titled Tuesday Blitz"]
[Site "Chess.com"]
[Date "2019.11.05"]
[Round "10"]
[White "kingofthenil"]
[Black "snowlord"]
[Result "1-0"]
[WhiteElo "2552"]
[BlackElo "2697"]
[TimeControl "180+2"]
[EndTime "15:22:04 PST"]
[Termination "kingofthenil won by resignation"]

1. d4 {[%clk 0:03:01.9]} 1... e6 {[%clk 0:02:55.4]} 2. c4 {[%clk 0:03:03.1]}
2... b6 {[%clk 0:02:56.4]} 3. a3 {[%clk 0:03:02.5]} 3... Nf6 {[%clk 0:02:51.9]}
4. Nc3 {[%clk 0:03:03.1]} 4... Bb7 {[%clk 0:02:53.4]} 5. Bg5 {[%clk 0:02:58.8]}
5... Be7 {[%clk 0:02:51.6]} 6. e3 {[%clk 0:02:58]} 6... c5 {[%clk 0:02:49.9]} 7.
Nf3 {[%clk 0:02:58.1]} 7... cxd4 {[%clk 0:02:50.6]} 8. exd4 {[%clk 0:02:57.4]}
8... O-O {[%clk 0:02:52.3]} 9. Be2 {[%clk 0:02:57]} 9... d5 {[%clk 0:02:50.5]}
10. O-O {[%clk 0:02:57.1]} 10... dxc4 {[%clk 0:02:51.3]} 11. Bxc4 {[%clk
0:02:56.9]} 11... Nc6 {[%clk 0:02:51.6]} 12. Re1 {[%clk 0:02:55.1]} 12... Rc8
{[%clk 0:02:32.5]} 13. Ba2 {[%clk 0:02:55.4]} 13... Nd5 {[%clk 0:02:26]} 14.
Bxd5 {[%clk 0:02:32.4]} 14... Bxg5 {[%clk 0:02:24.7]} 15. Be4 {[%clk 0:02:32.5]}
15... Bf6 {[%clk 0:02:19.7]} 16. Qd3 {[%clk 0:02:29.6]} 16... h6 {[%clk
0:02:12.9]} 17. Rad1 {[%clk 0:02:29.7]} 17... Re8 {[%clk 0:01:32.1]} 18. g3
{[%clk 0:02:16.3]} 18... Ba8 {[%clk 0:01:17.2]} 19. b4 {[%clk 0:02:04.4]} 19...
a5 {[%clk 0:01:13.4]} 20. b5 {[%clk 0:01:56.4]} 20... Ne7 {[%clk 0:01:14.2]} 21.
Ne5 {[%clk 0:01:35.5]} 21... Bxe4 {[%clk 0:00:46.6]} 22. Nxe4 {[%clk 0:01:37.4]}
22... Nd5 {[%clk 0:00:47.8]} 23. Nc6 {[%clk 0:01:34.6]} 23... Qd7 {[%clk
0:00:48.7]} 24. Qf3 {[%clk 0:01:33.9]} 24... Rc7 {[%clk 0:00:32.1]} 25. a4
{[%clk 0:01:34.3]} 25... Rec8 {[%clk 0:00:32.7]} 26. h4 {[%clk 0:01:35.4]} 26...
Be7 {[%clk 0:00:29.4]} 27. Re2 {[%clk 0:01:18.3]} 27... Nb4 {[%clk 0:00:30.1]}
28. Nxb4 {[%clk 0:00:47.6]} 28... axb4 {[%clk 0:00:28.8]} 29. d5 {[%clk
0:00:49.5]} 29... Rc1 {[%clk 0:00:24.3]} 30. Rd2 {[%clk 0:00:43.3]} 30... exd5
{[%clk 0:00:21.9]} 31. Rxd5 {[%clk 0:00:43.6]} 31... Qe6 {[%clk 0:00:11.4]} 32.
Kg2 {[%clk 0:00:44.2]} 32... b3 {[%clk 0:00:08.9]} 33. Rxc1 {[%clk 0:00:09.6]}
33... Rxc1 {[%clk 0:00:10.8]} 34. Nd2 {[%clk 0:00:08.1]} 34... b2 {[%clk
0:00:10.6]} 35. Rd3 {[%clk 0:00:03.8]} 35... b1=Q {[%clk 0:00:11.1]} 36. Nxb1
{[%clk 0:00:04.6]} 36... Rxb1 {[%clk 0:00:13]} 37. Qa8+ {[%clk 0:00:05]} 37...
Kh7 {[%clk 0:00:11.1]} 38. Re3 {[%clk 0:00:06.3]} 38... Qc4 {[%clk 0:00:08.6]}
39. Rxe7 {[%clk 0:00:06.6]} 39... Qf1+ {[%clk 0:00:09.6]} 40. Kh2 {[%clk
0:00:06.5]} 40... Qxf2+ {[%clk 0:00:10]} 41. Qg2 {[%clk 0:00:05.3]} 41... Qxg2+
{[%clk 0:00:06]} 42. Kxg2 {[%clk 0:00:07.2]} 42... Rb4 {[%clk 0:00:07.7]} 43.
Rxf7 {[%clk 0:00:07.5]} 43... Rxa4 {[%clk 0:00:08.5]} 44. Rb7 {[%clk 0:00:09]}
44... Kg6 {[%clk 0:00:08.8]} 45. Rxb6+ {[%clk 0:00:10.4]} 45... Kf5 {[%clk
0:00:10.4]} 46. Kh3 {[%clk 0:00:11.9]} 46... Rb4 {[%clk 0:00:11.1]} 47. Rb8
{[%clk 0:00:12.4]} 47... g5 {[%clk 0:00:12.3]} 48. Rf8+ {[%clk 0:00:14.3]} 48...
Kg6 {[%clk 0:00:12.4]} 49. hxg5 {[%clk 0:00:16.2]} 49... hxg5 {[%clk 0:00:12.4]}
50. Rb8 {[%clk 0:00:17]} 50... Kh5 {[%clk 0:00:12.9]} 51. g4+ {[%clk 0:00:13.6]}
51... Kg6 {[%clk 0:00:14]} 52. Kg3 {[%clk 0:00:14.7]} 52... Rb3+ {[%clk
0:00:15.1]} 53. Kf2 {[%clk 0:00:15.6]} 53... Kf6 {[%clk 0:00:16.3]} 54. b6
{[%clk 0:00:16.4]} 54... Ke5 {[%clk 0:00:06.8]} 55. b7 {[%clk 0:00:16.9]} 55...
Kd6 {[%clk 0:00:08.3]} 56. Rd8+ {[%clk 0:00:14.5]} 56... Kc7 {[%clk 0:00:09.5]}
57. b8=Q+ {[%clk 0:00:16.4]} 57... Rxb8 {[%clk 0:00:10.4]} 58. Rxb8 {[%clk
0:00:18.2]} 58... Kxb8 {[%clk 0:00:12.3]} 59. Ke3 {[%clk 0:00:19.6]} 59... Kc7
{[%clk 0:00:13.4]} 60. Ke4 {[%clk 0:00:21.5]} 60... Kd6 {[%clk 0:00:11.1]} 61.
Kf5 {[%clk 0:00:23.4]} 61... Ke7 {[%clk 0:00:12.5]} 62. Kxg5 {[%clk 0:00:24.5]}
62... Kf7 {[%clk 0:00:14.4]} 63. Kh6 {[%clk 0:00:25.3]} 63... Kf8 {[%clk
0:00:14.6]} 64. Kh7 {[%clk 0:00:25.5]} 1-0

[Event "*** Titled Tuesday Blitz"]
[Site "Chess.com"]
[Date "2019.11.05"]
[Round "10"]
[White "Vuk2000"]
[Black "DanielNaroditsky"]
[Result "1-0"]
[WhiteElo "2823"]
[BlackElo "2952"]
[TimeControl "180+2"]
[EndTime "15:22:15 PST"]
[Termination "Vuk2000 won by checkmate"]

1. d4 {[%clk 0:03:01.9]} 1... Nf6 {[%clk 0:02:52.5]} 2. Bg5 {[%clk 0:03:02.4]}
2... Ne4 {[%clk 0:02:52.3]} 3. Bf4 {[%clk 0:03:03.5]} 3... Nc6 {[%clk
0:02:52.9]} 4. f3 {[%clk 0:03:02.9]} 4... Nf6 {[%clk 0:02:54.1]} 5. e4 {[%clk
0:03:04.3]} 5... d5 {[%clk 0:02:53.8]} 6. e5 {[%clk 0:02:59.4]} 6... Nd7 {[%clk
0:02:55]} 7. Be3 {[%clk 0:02:56.7]} 7... Nb6 {[%clk 0:02:56.1]} 8. f4 {[%clk
0:02:56.8]} 8... Bf5 {[%clk 0:02:56.8]} 9. Nf3 {[%clk 0:02:55.3]} 9... e6 {[%clk
0:02:58.2]} 10. Nc3 {[%clk 0:02:46.5]} 10... Be7 {[%clk 0:02:51.4]} 11. Bd3
{[%clk 0:02:26.2]} 11... Nc4 {[%clk 0:02:45.8]} 12. Bc1 {[%clk 0:02:24]} 12...
Bxd3 {[%clk 0:02:39.9]} 13. Qxd3 {[%clk 0:02:22.9]} 13... f5 {[%clk 0:02:40.8]}
14. exf6 {[%clk 0:02:19.3]} 14... Bxf6 {[%clk 0:02:42.2]} 15. O-O {[%clk
0:02:19.6]} 15... O-O {[%clk 0:02:39.4]} 16. b3 {[%clk 0:02:12.5]} 16... Nd6
{[%clk 0:02:38.4]} 17. Ba3 {[%clk 0:02:12.8]} 17... Rf7 {[%clk 0:02:30.4]} 18.
Bxd6 {[%clk 0:01:48.8]} 18... cxd6 {[%clk 0:02:31.4]} 19. Rae1 {[%clk
0:01:46.1]} 19... Qd7 {[%clk 0:01:46.4]} 20. f5 {[%clk 0:01:30]} 20... exf5
{[%clk 0:01:47.7]} 21. Nxd5 {[%clk 0:01:30.9]} 21... Raf8 {[%clk 0:01:49.6]} 22.
c3 {[%clk 0:01:18.7]} 22... Bd8 {[%clk 0:01:50.7]} 23. Nf4 {[%clk 0:01:17]}
23... Re8 {[%clk 0:01:45.1]} 24. Qc4 {[%clk 0:01:10.2]} 24... Kh8 {[%clk
0:01:28]} 25. Rxe8+ {[%clk 0:00:46.1]} 25... Qxe8 {[%clk 0:01:29.9]} 26. Re1
{[%clk 0:00:46]} 26... Qd7 {[%clk 0:01:30.3]} 27. Qe6 {[%clk 0:00:41.6]} 27...
Kg8 {[%clk 0:00:56.7]} 28. d5 {[%clk 0:00:26.3]} 28... Bb6+ {[%clk 0:00:57.9]}
29. Kh1 {[%clk 0:00:23.6]} 29... Nd8 {[%clk 0:00:57]} 30. Qe2 {[%clk 0:00:21.7]}
30... h6 {[%clk 0:00:48.3]} 31. Ng6 {[%clk 0:00:22.8]} 31... Kh7 {[%clk
0:00:49.8]} 32. Nf4 {[%clk 0:00:19.4]} 32... Rf6 {[%clk 0:00:39]} 33. h4 {[%clk
0:00:19.5]} 33... Nf7 {[%clk 0:00:36.8]} 34. Qe7 {[%clk 0:00:17.9]} 34... Ne5
{[%clk 0:00:18.8]} 35. Rxe5 {[%clk 0:00:16.5]} 35... Qc8 {[%clk 0:00:17]} 36.
Re1 {[%clk 0:00:16]} 36... Qxc3 {[%clk 0:00:18.2]} 37. Rf1 {[%clk 0:00:11.2]}
37... Qb4 {[%clk 0:00:14.4]} 38. Ne6 {[%clk 0:00:10.6]} 38... Qg4 {[%clk
0:00:11.1]} 39. Nh2 {[%clk 0:00:07.1]} 39... Qg3 {[%clk 0:00:09.2]} 40. h5
{[%clk 0:00:07.1]} 40... Be3 {[%clk 0:00:05.4]} 41. Nf8+ {[%clk 0:00:08.1]}
41... Kg8 {[%clk 0:00:04.5]} 42. Ng6 {[%clk 0:00:09.4]} 42... Kh7 {[%clk
0:00:03.8]} 43. Qe8 {[%clk 0:00:09.6]} 43... Rxg6 {[%clk 0:00:05.3]} 44. Qxg6+
{[%clk 0:00:10.4]} 44... Qxg6 {[%clk 0:00:06.6]} 45. hxg6+ {[%clk 0:00:12.3]}
45... Kxg6 {[%clk 0:00:08.5]} 46. Nf3 {[%clk 0:00:13.9]} 46... Kf6 {[%clk
0:00:10]} 47. Re1 {[%clk 0:00:15.3]} 47... f4 {[%clk 0:00:11.6]} 48. g3 {[%clk
0:00:16.4]} 48... Kf5 {[%clk 0:00:11.1]} 49. Kg2 {[%clk 0:00:17.4]} 49... g5
{[%clk 0:00:12.4]} 50. gxf4 {[%clk 0:00:16.6]} 50... Kxf4 {[%clk 0:00:14.3]} 51.
Rf1 {[%clk 0:00:17.6]} 51... Ke4 {[%clk 0:00:15]} 52. Rh1 {[%clk 0:00:16.4]}
52... g4 {[%clk 0:00:13.9]} 53. Nh2 {[%clk 0:00:17.8]} 53... Kf5 {[%clk
0:00:11.4]} 54. Rf1+ {[%clk 0:00:16.7]} 54... Kg5 {[%clk 0:00:11.4]} 55. Kg3
{[%clk 0:00:17]} 55... h5 {[%clk 0:00:12.6]} 56. Rf8 {[%clk 0:00:16.8]} 56...
Bd4 {[%clk 0:00:11.2]} 57. Rg8+ {[%clk 0:00:17.3]} 57... Kf5 {[%clk 0:00:12.8]}
58. Kg2 {[%clk 0:00:16.4]} 58... Be5 {[%clk 0:00:10.1]} 59. Rf8+ {[%clk
0:00:17.2]} 59... Ke4 {[%clk 0:00:09.4]} 60. Rf7 {[%clk 0:00:14.3]} 60... Kxd5
{[%clk 0:00:10.4]} 61. Rxb7 {[%clk 0:00:15.2]} 61... Bd4 {[%clk 0:00:11.1]} 62.
Rh7 {[%clk 0:00:15.7]} 62... Ke4 {[%clk 0:00:11.2]} 63. Rxh5 {[%clk 0:00:16.8]}
63... d5 {[%clk 0:00:13.1]} 64. Nxg4 {[%clk 0:00:17.9]} 64... Bg7 {[%clk
0:00:15]} 65. Nf2+ {[%clk 0:00:18.7]} 65... Kd4 {[%clk 0:00:16.6]} 66. Rg5
{[%clk 0:00:19.2]} 66... Bf6 {[%clk 0:00:17.7]} 67. Rf5 {[%clk 0:00:20.3]} 67...
Be5 {[%clk 0:00:19.3]} 68. Kf3 {[%clk 0:00:21.4]} 68... Bc7 {[%clk 0:00:20]} 69.
Ke2 {[%clk 0:00:22.7]} 69... Kc3 {[%clk 0:00:21.5]} 70. Rxd5 {[%clk 0:00:23.4]}
70... Kb2 {[%clk 0:00:23.3]} 71. Rd2+ {[%clk 0:00:21.7]} 71... Ka3 {[%clk
0:00:25]} 72. Rc2 {[%clk 0:00:22.3]} 72... Ba5 {[%clk 0:00:26.9]} 73. Nd1 {[%clk
0:00:23.4]} 73... Bb4 {[%clk 0:00:28.8]} 74. Ne3 {[%clk 0:00:24.5]} 74... a5
{[%clk 0:00:30.7]} 75. Nc4# {[%clk 0:00:25.8]} 1-0

[Event "*** Titled Tuesday Blitz"]
[Site "Chess.com"]
[Date "2019.11.05"]
[Round "10"]
[White "JonahWillow"]
[Black "RainForestt"]
[Result "1/2-1/2"]
[WhiteElo "2779"]
[BlackElo "2580"]
[TimeControl "180+2"]
[EndTime "15:22:33 PST"]
[Termination "Game drawn by stalemate"]

1. e4 {[%clk 0:03:01.9]} 1... e6 {[%clk 0:02:56.5]} 2. d4 {[%clk 0:03:02]} 2...
d5 {[%clk 0:02:57.2]} 3. Nd2 {[%clk 0:03:03.4]} 3... dxe4 {[%clk 0:02:56.1]} 4.
Nxe4 {[%clk 0:03:05.3]} 4... Nd7 {[%clk 0:02:56.3]} 5. Nf3 {[%clk 0:03:00.9]}
5... Be7 {[%clk 0:02:56]} 6. Bd3 {[%clk 0:02:44.6]} 6... Ngf6 {[%clk 0:02:56.8]}
7. Nxf6+ {[%clk 0:02:46.1]} 7... Nxf6 {[%clk 0:02:49]} 8. Ne5 {[%clk 0:02:46.9]}
8... c5 {[%clk 0:02:46.5]} 9. dxc5 {[%clk 0:02:38.1]} 9... Bxc5 {[%clk
0:02:40.7]} 10. O-O {[%clk 0:02:38.7]} 10... O-O {[%clk 0:02:36.2]} 11. Bg5
{[%clk 0:02:39.5]} 11... h6 {[%clk 0:02:32.9]} 12. Bh4 {[%clk 0:02:35.1]} 12...
Qd4 {[%clk 0:02:28.2]} 13. Bxf6 {[%clk 0:02:25.8]} 13... gxf6 {[%clk 0:02:30.1]}
14. Nf3 {[%clk 0:02:24.5]} 14... Qxb2 {[%clk 0:02:19.7]} 15. Qd2 {[%clk
0:02:20.1]} 15... f5 {[%clk 0:02:08.8]} 16. Qxh6 {[%clk 0:02:17.5]} 16... Qg7
{[%clk 0:02:04.5]} 17. Qh5 {[%clk 0:02:13.6]} 17... Bd7 {[%clk 0:02:01.9]} 18.
Rab1 {[%clk 0:01:56.2]} 18... Bc6 {[%clk 0:01:57.5]} 19. Bb5 {[%clk 0:01:57.6]}
19... Bd5 {[%clk 0:01:52.1]} 20. Bd3 {[%clk 0:01:54.5]} 20... Bc6 {[%clk
0:01:47.3]} 21. h4 {[%clk 0:01:52.1]} 21... Rad8 {[%clk 0:01:44.7]} 22. Ng5
{[%clk 0:01:45]} 22... a6 {[%clk 0:01:38.6]} 23. Rbd1 {[%clk 0:01:42]} 23... Rd4
{[%clk 0:01:33.8]} 24. Be2 {[%clk 0:01:38.9]} 24... Rfd8 {[%clk 0:01:24.8]} 25.
Rxd4 {[%clk 0:01:39.8]} 25... Rxd4 {[%clk 0:01:20.3]} 26. c3 {[%clk 0:01:22.1]}
26... Rd2 {[%clk 0:01:15.1]} 27. Bf3 {[%clk 0:01:19.1]} 27... Bb5 {[%clk
0:01:05.7]} 28. Ra1 {[%clk 0:00:31.3]} 28... Bxf2+ {[%clk 0:01:00.6]} 29. Kh1
{[%clk 0:00:32.8]} 29... Kf8 {[%clk 0:00:40.2]} 30. Bxb7 {[%clk 0:00:30.4]}
30... Be3 {[%clk 0:00:31.9]} 31. Re1 {[%clk 0:00:25.8]} 31... Bxg5 {[%clk
0:00:27.9]} 32. hxg5 {[%clk 0:00:27.7]} 32... Qxc3 {[%clk 0:00:23]} 33. Qh6+
{[%clk 0:00:29]} 33... Qg7 {[%clk 0:00:18]} 34. Qh4 {[%clk 0:00:30.2]} 34...
Rxa2 {[%clk 0:00:14.9]} 35. g6 {[%clk 0:00:21.6]} 35... Ra1 {[%clk 0:00:09.3]}
36. Qd8+ {[%clk 0:00:19.8]} 36... Be8 {[%clk 0:00:10.6]} 37. Qd6+ {[%clk
0:00:21.7]} 37... Kg8 {[%clk 0:00:11.5]} 38. gxf7+ {[%clk 0:00:21.4]} 38... Bxf7
{[%clk 0:00:13.3]} 39. Qd8+ {[%clk 0:00:21.7]} 39... Kh7 {[%clk 0:00:14.2]} 40.
Qh4+ {[%clk 0:00:22.8]} 40... Kg8 {[%clk 0:00:15.4]} 41. Rxa1 {[%clk 0:00:20.9]}
41... Qxa1+ {[%clk 0:00:11.9]} 42. Kh2 {[%clk 0:00:22.8]} 42... Qh8 {[%clk
0:00:12.8]} 43. Qxh8+ {[%clk 0:00:20.2]} 43... Kxh8 {[%clk 0:00:14.7]} 44. Bxa6
{[%clk 0:00:22.1]} 44... Kg7 {[%clk 0:00:15.9]} 45. Kg3 {[%clk 0:00:21.9]} 45...
Kf6 {[%clk 0:00:17.8]} 46. Kf4 {[%clk 0:00:22.5]} 46... e5+ {[%clk 0:00:19.7]}
47. Ke3 {[%clk 0:00:23.3]} 47... Bh5 {[%clk 0:00:21.1]} 48. g3 {[%clk
0:00:22.7]} 48... Bg4 {[%clk 0:00:21.5]} 49. Bd3 {[%clk 0:00:23.4]} 49... Kg5
{[%clk 0:00:22.3]} 50. Bc4 {[%clk 0:00:24.5]} 50... Bh3 {[%clk 0:00:23.2]} 51.
Bb5 {[%clk 0:00:24.1]} 51... Bg2 {[%clk 0:00:24.1]} 52. Bd3 {[%clk 0:00:22.7]}
52... Bb7 {[%clk 0:00:24.8]} 53. Bc4 {[%clk 0:00:23.7]} 53... Kg4 {[%clk
0:00:24.6]} 54. Be6 {[%clk 0:00:22.1]} 54... Be4 {[%clk 0:00:24.6]} 55. Kf2
{[%clk 0:00:23.4]} 55... Kg5 {[%clk 0:00:25.2]} 56. Ke3 {[%clk 0:00:24]} 56...
Bb1 {[%clk 0:00:26.2]} 57. Bc8 {[%clk 0:00:23.8]} 57... f4+ {[%clk 0:00:27.1]}
58. gxf4+ {[%clk 0:00:24.7]} 58... exf4+ {[%clk 0:00:29]} 59. Kf2 {[%clk
0:00:26.4]} 59... Kf6 {[%clk 0:00:28.2]} 60. Bb7 {[%clk 0:00:26.7]} 60... Ke5
{[%clk 0:00:29.5]} 61. Bc8 {[%clk 0:00:26.3]} 61... Ba2 {[%clk 0:00:26.8]} 62.
Bh3 {[%clk 0:00:24.9]} 62... Bf7 {[%clk 0:00:28]} 63. Bf1 {[%clk 0:00:25.7]}
63... Bh5 {[%clk 0:00:29.4]} 64. Bg2 {[%clk 0:00:25.2]} 64... Bg4 {[%clk
0:00:29.1]} 65. Bf3 {[%clk 0:00:25]} 65... Bf5 {[%clk 0:00:30.5]} 66. Bg2 {[%clk
0:00:26]} 66... Be4 {[%clk 0:00:30.3]} 67. Bxe4 {[%clk 0:00:25.7]} 67... Kxe4
{[%clk 0:00:32.2]} 68. Ke2 {[%clk 0:00:27.4]} 68... f3+ {[%clk 0:00:33.9]} 69.
Kf2 {[%clk 0:00:28.9]} 69... Kf4 {[%clk 0:00:35.1]} 70. Kf1 {[%clk 0:00:30.1]}
70... Kf5 {[%clk 0:00:35.8]} 71. Kf2 {[%clk 0:00:31.1]} 71... Ke4 {[%clk
0:00:37]} 72. Kf1 {[%clk 0:00:32.4]} 72... Ke3 {[%clk 0:00:38]} 73. Ke1 {[%clk
0:00:33.6]} 73... Kf4 {[%clk 0:00:39.2]} 74. Kf2 {[%clk 0:00:35.5]} 74... Kg4
{[%clk 0:00:40.5]} 75. Kf1 {[%clk 0:00:36.6]} 75... Kg3 {[%clk 0:00:42]} 76. Kg1
{[%clk 0:00:37.4]} 76... f2+ {[%clk 0:00:43.3]} 77. Kf1 {[%clk 0:00:38.7]} 77...
Kf3 {[%clk 0:00:44.3]} 1/2-1/2

[Event "*** Titled Tuesday Blitz"]
[Site "Chess.com"]
[Date "2019.11.05"]
[Round "10"]
[White "Bigfish1995"]
[Black "ChessWarrior7197"]
[Result "1/2-1/2"]
[WhiteElo "3023"]
[BlackElo "2968"]
[TimeControl "180+2"]
[EndTime "15:23:22 PST"]
[Termination "Game drawn by agreement"]

1. d4 {[%clk 0:03:01.9]} 1... Nf6 {[%clk 0:03:00.7]} 2. c4 {[%clk 0:03:03.1]}
2... e6 {[%clk 0:03:01.5]} 3. Nf3 {[%clk 0:03:03.8]} 3... d5 {[%clk 0:02:57.2]}
4. Nc3 {[%clk 0:03:02.1]} 4... Be7 {[%clk 0:02:58.2]} 5. Bf4 {[%clk 0:03:02.5]}
5... O-O {[%clk 0:02:58.7]} 6. e3 {[%clk 0:03:03.8]} 6... Nbd7 {[%clk
0:02:58.9]} 7. a3 {[%clk 0:03:00.6]} 7... c5 {[%clk 0:02:57.3]} 8. Rc1 {[%clk
0:02:54.7]} 8... dxc4 {[%clk 0:02:56.8]} 9. Bxc4 {[%clk 0:02:55.2]} 9... a6
{[%clk 0:02:57.6]} 10. dxc5 {[%clk 0:02:43.8]} 10... Nxc5 {[%clk 0:02:57.6]} 11.
b4 {[%clk 0:02:44.2]} 11... Qxd1+ {[%clk 0:02:56.4]} 12. Rxd1 {[%clk 0:02:43.8]}
12... Nce4 {[%clk 0:02:52.1]} 13. Nxe4 {[%clk 0:02:40.3]} 13... Nxe4 {[%clk
0:02:52.5]} 14. Rd4 {[%clk 0:02:28]} 14... Nc3 {[%clk 0:02:45.7]} 15. Bd6 {[%clk
0:02:19.1]} 15... Bxd6 {[%clk 0:02:43.7]} 16. Rxd6 {[%clk 0:02:20.3]} 16... a5
{[%clk 0:02:40.8]} 17. b5 {[%clk 0:02:13.6]} 17... Ne4 {[%clk 0:02:07.3]} 18.
Rd4 {[%clk 0:02:13.5]} 18... Nc5 {[%clk 0:02:07.8]} 19. Ne5 {[%clk 0:02:00.8]}
19... f6 {[%clk 0:01:59.1]} 20. Nd3 {[%clk 0:01:59.1]} 20... Nxd3+ {[%clk
0:01:39.3]} 21. Rxd3 {[%clk 0:02:00]} 21... Kf7 {[%clk 0:01:34.6]} 22. Ke2
{[%clk 0:01:56.9]} 22... Ke7 {[%clk 0:01:33.7]} 23. Rhd1 {[%clk 0:01:57.2]}
23... b6 {[%clk 0:01:27.8]} 24. Rd6 {[%clk 0:01:51.7]} 24... Rb8 {[%clk
0:01:22.7]} 25. Rc6 {[%clk 0:01:37.6]} 25... Rb7 {[%clk 0:01:19.8]} 26. Rdd6
{[%clk 0:01:32.6]} 26... Bd7 {[%clk 0:01:20.3]} 27. Rxb6 {[%clk 0:01:32.8]}
27... Rfb8 {[%clk 0:01:20.6]} 28. Ra6 {[%clk 0:01:17.2]} 28... Rxb5 {[%clk
0:01:12]} 29. Bxe6 {[%clk 0:00:49.5]} 29... Rb2+ {[%clk 0:01:06.7]} 30. Kf3
{[%clk 0:00:24]} 30... Bb5 {[%clk 0:01:06.8]} 31. Bd5 {[%clk 0:00:24.3]} 31...
Bxa6 {[%clk 0:01:03.6]} 32. Rxa6 {[%clk 0:00:26]} 32... Rd2 {[%clk 0:01:04.6]}
33. Rxa5 {[%clk 0:00:24]} 33... Rbb2 {[%clk 0:01:04.8]} 34. Kg3 {[%clk
0:00:22.1]} 34... Rxf2 {[%clk 0:01:04.4]} 35. Ra7+ {[%clk 0:00:23.3]} 35... Kd6
{[%clk 0:01:04.7]} 36. Bf3 {[%clk 0:00:24.6]} 36... g6 {[%clk 0:00:57]} 37. Rxh7
{[%clk 0:00:24.1]} 37... g5 {[%clk 0:00:50.9]} 38. Kg4 {[%clk 0:00:18.9]} 38...
Ke6 {[%clk 0:00:49.3]} 39. Ra7 {[%clk 0:00:15.8]} 39... Rxg2+ {[%clk 0:00:49.5]}
40. Bxg2 {[%clk 0:00:16.6]} 40... Rxg2+ {[%clk 0:00:51.4]} 41. Kh3 {[%clk
0:00:08.1]} 41... Re2 {[%clk 0:00:51.8]} 42. Kg3 {[%clk 0:00:05.3]} 42... Rxe3+
{[%clk 0:00:52.1]} 43. Kg4 {[%clk 0:00:06.9]} 43... Re2 {[%clk 0:00:45.3]} 44.
Kg3 {[%clk 0:00:06.9]} 44... f5 {[%clk 0:00:39.1]} 45. h3 {[%clk 0:00:05.8]}
45... Re3+ {[%clk 0:00:38.7]} 46. Kg2 {[%clk 0:00:06.9]} 46... f4 {[%clk
0:00:39]} 47. Ra5 {[%clk 0:00:07.3]} 47... Kf6 {[%clk 0:00:38.3]} 48. a4 {[%clk
0:00:07.4]} 48... Ra3 {[%clk 0:00:37.6]} 49. Ra8 {[%clk 0:00:05.6]} 49... Ra2+
{[%clk 0:00:35.3]} 50. Kf3 {[%clk 0:00:06.1]} 50... Rh2 {[%clk 0:00:35.5]} 51.
Rh8 {[%clk 0:00:06.2]} 51... Kg7 {[%clk 0:00:35.3]} 52. Rh5 {[%clk 0:00:07.4]}
52... Kg6 {[%clk 0:00:35.3]} 53. Rh8 {[%clk 0:00:08.5]} 53... Ra2 {[%clk
0:00:34.3]} 54. Rg8+ {[%clk 0:00:04.8]} 54... Kf6 {[%clk 0:00:33.5]} 55. Rf8+
{[%clk 0:00:03.9]} 55... Kg7 {[%clk 0:00:33.7]} 56. Rf5 {[%clk 0:00:04.6]} 56...
Ra3+ {[%clk 0:00:29.5]} 57. Kg4 {[%clk 0:00:04.5]} 57... Rg3+ {[%clk 0:00:29.9]}
58. Kh5 {[%clk 0:00:06.1]} 58... f3 {[%clk 0:00:19.4]} 59. a5 {[%clk 0:00:07.2]}
59... Rxh3+ {[%clk 0:00:15.5]} 60. Kxg5 {[%clk 0:00:08]} 60... f2 {[%clk
0:00:08.9]} 61. Rxf2 {[%clk 0:00:07.4]} 61... Ra3 {[%clk 0:00:09.5]} 62. Rf5
{[%clk 0:00:08.2]} 62... Ra4 {[%clk 0:00:10.2]} 63. Kh5 {[%clk 0:00:08.5]} 63...
Ra3 {[%clk 0:00:10.1]} 64. Kg5 {[%clk 0:00:06.5]} 64... Ra4 {[%clk 0:00:10.9]}
65. Re5 {[%clk 0:00:08.1]} 65... Kf7 {[%clk 0:00:12]} 66. Kf5 {[%clk 0:00:09.5]}
66... Rb4 {[%clk 0:00:07.7]} 67. Rc5 {[%clk 0:00:05.9]} 67... Ke7 {[%clk
0:00:07.4]} 68. a6 {[%clk 0:00:06.6]} 68... Ra4 {[%clk 0:00:08]} 69. Rc6 {[%clk
0:00:07.1]} 69... Kd7 {[%clk 0:00:09]} 70. Rh6 {[%clk 0:00:08]} 70... Kc7 {[%clk
0:00:10.5]} 71. Ke5 {[%clk 0:00:09.2]} 71... Kb8 {[%clk 0:00:11.8]} 72. Kd5
{[%clk 0:00:09.3]} 72... Ka7 {[%clk 0:00:13.2]} 73. Rh8 {[%clk 0:00:10.2]} 73...
Rxa6 {[%clk 0:00:13.6]} 74. Kc5 {[%clk 0:00:11.4]} 74... Ra1 {[%clk 0:00:13.9]}
75. Rh7+ {[%clk 0:00:11.4]} 1/2-1/2